bitfinex-derivatives/quotes_ETHF0:USTF0_20260209
["timestamp","ask_amount","ask_price","bid_price","bid_amount"]
[1770639185770,0.54131904,2037.9,2037.1,2.90366409]
[1770639186168,0.54131904,2037.9,2037.1,3.46768037]
[1770639186366,0.54131904,2037.9,2037.2,0.56401628]
[1770639187476,0.54131904,2037.9,2037.1,2.90366409]
[1770639187780,0.54131904,2037.9,2037.0,26.83199584]
[1770639187781,44.27595257,2037.8,2037.0,18.00335935]
[1770639188069,44.03035257,2037.6,2037.0,16.09008528]
[1770639188272,44.03035257,2037.5,2037.0,16.09008528]
[1770639188473,44.03035257,2037.5,2037.0,16.07688067]
[1770639189477,44.03035257,2037.6,2037.0,16.07688067]
[1770639190572,44.03035257,2037.7,2037.0,16.07688067]
[1770639192475,44.03035257,2037.5,2037.0,16.07688067]
[1770639192674,44.03035257,2037.6,2037.0,16.07688067]
[1770639192881,0.00127854,2037.5,2037.0,16.07688067]
[1770639193475,0.00127854,2037.5,2037.0,16.6706547]
[1770639193677,0.00127854,2037.5,2037.1,0.59377403]
[1770639193875,0.00127854,2037.7,2037.1,0.59377403]
[1770639194375,44.03035257,2037.9,2037.1,0.59377403]
[1770639194376,0.00127854,2037.9,2037.1,0.59377403]
[1770639194572,0.00127854,2038.1,2037.1,0.59377403]
[1770639194971,40.80944671,2038.3,2037.1,0.59377403]
[1770639195181,40.80944671,2038.3,2037.2,0.58968994]
[1770639195384,0.00944671,2038.3,2037.2,6.93036452]
[1770639195581,0.00944671,2038.3,2037.3,0.58968994]
[1770639195981,0.00961322,2038.1,2037.3,0.58968994]
[1770639196879,40.8,2038.2,2037.3,0.58968994]
[1770639198580,31.75520385,2038.5,2037.3,0.58968994]
[1770639199088,40.8,2038.4,2037.3,0.58968994]
[1770639202787,40.8,2038.4,2037.5,0.61738306]
[1770639203288,0.00520385,2038.5,2037.5,0.61738306]
[1770639203887,40.8,2038.4,2037.5,0.61738306]
[1770639204285,0.00520385,2038.5,2037.5,0.61738306]
[1770639204483,0.00520385,2038.5,2037.7,0.61735414]
[1770639204679,0.00520385,2038.5,2037.7,0.62290037]
[1770639206486,44.03035257,2039.2,2037.9,0.61489266]
[1770639207491,40.8,2039.1,2037.9,0.61489266]
[1770639209394,44.27580257,2039.0,2037.7,0.62258257]
[1770639209691,44.03035257,2038.9,2037.7,0.62258257]
[1770639210491,44.03035257,2038.8,2037.7,0.00554623]
[1770639212388,48.94535257,2038.8,2037.7,0.00554623]
[1770639212993,40.8,2038.7,2037.7,0.61729706]
[1770639216492,44.27580257,2039.0,2037.7,0.61729706]
[1770639216792,40.8,2038.9,2037.7,0.61729706]
[1770639218496,44.27583257,2038.8,2037.7,0.00554623]
[1770639218697,31.739,2038.7,2037.7,0.00554623]
[1770639219198,75.76935257,2038.7,2037.7,0.00554623]
[1770639219592,0.24548,2038.8,2037.8,0.61067777]
[1770639220189,0.24548,2038.8,2037.7,0.00554623]
[1770639220586,44.03035257,2038.7,2037.7,0.00554623]
[1770639220793,0.2455,2038.6,2037.7,0.00554623]
[1770639221193,44.27585257,2038.6,2037.7,0.00554623]
[1770639221587,49.19085257,2038.6,2037.7,0.00554623]
[1770639221799,44.03035257,2038.5,2037.7,0.00554623]
[1770639221991,31.739,2038.4,2037.7,0.00554623]
[1770639222192,44.03035257,2038.0,2037.0,16.6821946]
[1770639222691,40.8,2037.9,2037.0,16.6821946]
[1770639222895,40.8,2037.9,2037.1,0.6024426]
[1770639223096,40.8,2037.9,2037.1,0.00556654]
[1770639223296,40.8,2037.9,2037.1,0.60800914]
[1770639225100,40.8,2037.9,2037.1,0.00556654]
[1770639226794,0.00742067,2037.8,2037.1,0.00556654]
[1770639229609,0.00742067,2037.8,2037.1,0.59606833]
[1770639232808,0.00742067,2037.8,2037.1,0.00556654]
[1770639233004,44.27596257,2037.7,2036.5,0.5943593]
[1770639233203,31.746,2037.6,2036.5,0.5943593]
[1770639233407,0.24563,2037.5,2036.5,0.5943593]
[1770639233914,0.24953335,2037.5,2036.5,0.00628512]
[1770639234117,0.24953335,2037.5,2036.5,0.60064442]
[1770639234810,0.00134713,2037.4,2036.5,0.60064442]
[1770639235615,0.00390335,2037.5,2036.5,0.60064442]
[1770639235815,0.00134713,2037.8,2036.7,0.59368573]
[1770639236215,40.80134713,2037.7,2036.7,0.59368573]
[1770639236723,40.80679513,2037.7,2036.7,0.59368573]
[1770639236916,0.00353851,2037.6,2036.7,0.59368573]
[1770639238020,40.805448,2037.7,2036.7,0.59368573]
[1770639238821,40.8113621,2037.7,2036.7,0.59368573]
[1770639239313,0.0113621,2037.7,2036.7,0.59368573]
[1770639239723,40.8113621,2037.7,2036.7,0.59368573]
[1770639240420,0.005448,2037.7,2036.7,0.59368573]
[1770639240817,0.0113621,2037.7,2036.7,0.59368573]
[1770639241015,0.005448,2037.7,2036.7,0.59368573]
[1770639241216,0.01251591,2037.7,2036.7,0.59368573]
[1770639241421,0.00706791,2037.6,2036.7,0.59368573]
[1770639244420,0.00616472,2037.1,2036.5,0.59756206]
[1770639245222,0.01389526,2036.8,2036.5,0.00628512]
[1770639245616,0.00390335,2036.7,2036.5,0.00628512]
[1770639246018,0.01389526,2036.7,2036.5,0.00628512]
[1770639246217,0.00390335,2036.6,2036.5,0.00628512]
[1770639246424,0.01389526,2036.5,2036.1,0.58741167]
[1770639246927,0.01785605,2036.5,2036.1,0.58741167]
[1770639247327,0.01785605,2036.5,2036.1,0.59149298]
[1770639247522,0.00390335,2036.5,2036.1,0.59149298]
[1770639247823,0.0139527,2037.4,2036.1,0.59149298]
[1770639248025,0.0139527,2037.4,2036.2,0.58738295]
[1770639249422,44.04022616,2037.6,2036.2,0.58738295]
[1770639249625,0.00987359,2037.5,2036.2,3.49104704]
[1770639249825,0.00987359,2037.5,2036.3,0.58942251]
[1770639250125,0.005448,2037.7,2036.7,3.4930866]
[1770639250317,0.005448,2037.7,2036.8,0.58942251]
[1770639250518,0.005448,2037.7,2036.9,0.58942251]
[1770639251327,0.0588735,2037.7,2036.9,0.58942251]
[1770639252125,0.005448,2037.7,2036.9,0.58942251]
[1770639253720,0.005448,2037.7,2036.9,3.4930866]
[1770639253927,0.005448,2037.7,2037.0,0.58178635]
[1770639256334,0.09223366,2038.6,2037.5,0.55307039]
[1770639256637,0.09223366,2039.2,2037.9,0.55307039]
[1770639257235,0.09732256,2039.2,2037.9,0.55877774]
[1770639259128,0.09200989,2038.9,2037.9,0.55877774]
[1770639261335,0.24545,2039.0,2037.9,0.55877774]
[1770639261631,0.10729553,2038.9,2037.9,0.55877774]
[1770639261831,0.10729553,2038.9,2037.9,0.00570735]
[1770639262038,0.10729553,2038.7,2037.9,0.00570735]
[1770639262438,0.10729553,2038.7,2037.9,0.57491781]
[1770639264935,40.8,2038.8,2037.9,0.57491781]
[1770639265141,0.11472545,2038.7,2037.9,0.57491781]
[1770639265938,0.11472545,2038.7,2037.9,0.00570735]
[1770639267233,0.10575808,2038.5,2037.6,0.56921046]
[1770639268345,0.10575808,2038.4,2037.6,0.56921046]
[1770639268537,0.10575808,2038.4,2037.6,0.57510055]
[1770639270438,0.11039455,2038.7,2037.6,0.57510055]
[1770639273239,0.10402361,2038.6,2037.6,0.57510055]
[1770639275446,0.10398635,2038.4,2037.6,0.00589009]
[1770639275645,0.10398635,2038.2,2037.6,0.00589009]
[1770639275947,0.10398635,2038.2,2037.6,0.57510055]
[1770639279645,0.10398635,2038.2,2037.6,9e-08]
[1770639279839,0.09245069,2037.9,2037.2,0.56921046]
[1770639280039,0.09245069,2037.8,2037.2,0.56921046]
[1770639280648,0.09245069,2037.6,2037.2,0.56921046]
[1770639280849,0.09864032,2037.6,2037.2,0.57465392]
[1770639282147,40.8,2037.7,2037.2,0.57465392]
[1770639282347,6.0376,2039.3,2037.2,0.57465392]
[1770639282348,5.85624341,2038.6,2037.2,0.57465392]
[1770639282645,0.09926309,2038.5,2037.2,0.57465392]
[1770639283244,0.10555209,2038.5,2037.2,0.57465392]
[1770639285654,0.006289,2038.5,2037.2,0.57465392]
[1770639286543,0.006289,2038.5,2037.2,3.47035139]
[1770639286844,0.006289,2038.5,2037.3,0.57283795]
[1770639287355,0.006289,2038.5,2037.4,3.46853542]
[1770639287648,0.11817002,2038.5,2037.5,0.57283795]
[1770639289351,0.006289,2038.5,2037.5,0.57283795]
[1770639290351,0.11218176,2038.5,2037.5,0.57283795]
[1770639292554,0.006289,2038.5,2037.5,0.57283795]
[1770639292854,0.10743365,2038.5,2037.5,0.57283795]
[1770639294152,0.11549651,2038.2,2037.5,0.57283795]
[1770639294552,0.11549651,2038.2,2037.3,0.57283795]
[1770639295054,0.57422379,2037.9,2037.2,0.00544346]
[1770639295753,0.57422379,2037.9,2037.2,0.57828141]
[1770639296150,0.57422379,2037.7,2037.2,0.57828141]
[1770639297754,0.57422379,2037.7,2036.8,0.57283795]
[1770639298158,0.57422379,2037.6,2036.8,0.57283795]
[1770639298854,0.57422379,2037.6,2036.8,0.57773146]
[1770639300458,0.57422379,2037.5,2036.8,0.00489351]
[1770639300656,0.57422379,2037.3,2036.5,0.5461248]
[1770639301051,0.57422379,2037.3,2036.1,0.54217785]
[1770639301657,0.57422379,2037.1,2036.1,0.54833322]
[1770639302350,40.8,2037.2,2036.1,0.54833322]
[1770639302755,0.57422379,2037.1,2036.1,0.54833322]
[1770639303960,0.57422379,2037.0,2036.1,0.54833322]
[1770639304258,0.57784778,2037.0,2036.1,0.54833322]
[1770639310764,0.57784778,2037.0,2035.5,0.53325537]
[1770639310765,0.57422379,2036.7,2035.5,0.53325537]
[1770639310961,0.24571,2036.9,2035.5,0.53325537]
[1770639310962,0.81993379,2036.9,2035.5,0.53325537]
[1770639311167,0.57422379,2036.9,2035.5,0.53325537]
[1770639311759,0.57422379,2036.9,2035.5,0.53813724]
[1770639313066,8.05654051,2037.0,2035.5,0.53813724]
[1770639313067,0.57422379,2036.7,2035.5,0.53813724]
[1770639313665,0.57422379,2036.6,2035.5,0.53813724]
[1770639323673,0.59604589,2037.0,2035.7,0.53939204]
[1770639324277,0.59604589,2037.0,2035.8,0.53939204]
[1770639325580,0.59604589,2037.0,2035.9,0.53102154]
[1770639326781,0.59604589,2037.0,2036.0,0.53102154]
[1770639333684,0.5924219,2036.9,2036.0,0.53102154]
[1770639336681,0.59604589,2037.0,2036.0,0.53102154]
[1770639336880,0.59604589,2037.0,2036.1,0.53015458]
[1770639338086,0.24573,2036.7,2035.8,2.89569747]
[1770639338291,0.5924219,2036.4,2035.7,0.53015458]
[1770639338491,0.5924219,2036.2,2035.5,0.53503645]
[1770639340692,5.85624341,2036.6,2035.5,0.53503645]
[1770639340693,3.53320454,2036.5,2035.5,0.53503645]
[1770639341803,0.5924219,2036.5,2035.6,0.50954596]
[1770639342997,2.94078264,2036.6,2035.6,0.50954596]
[1770639343202,35.29820454,2036.7,2035.7,0.51174312]
[1770639343499,35.29820454,2036.7,2035.7,3.40744059]
[1770639343706,0.58517983,2036.6,2035.8,0.51118744]
[1770639347308,0.57359325,2036.6,2035.8,0.51118744]
[1770639348300,0.57359325,2036.6,2035.9,0.51892194]
[1770639352100,0.57359325,2036.6,2035.8,0.51877393]
[1770639352909,3.51437589,2036.6,2035.8,0.51877393]
[1770639353211,0.58340305,2036.5,2035.8,0.51877393]
[1770639354313,0.58340305,2036.4,2035.8,0.51877393]
[1770639355510,0.58340305,2036.3,2035.8,0.51877393]
[1770639356110,0.58340305,2036.3,2035.5,2.90057934]
[1770639356312,0.58340305,2036.2,2035.6,0.51867159]
[1770639356516,3.52418569,2036.1,2035.6,0.51867159]
[1770639356707,0.58340305,2036.0,2035.6,0.51867159]
[1770639357612,0.58340305,2035.9,2035.6,0.51867159]
[1770639358118,0.58340305,2035.9,2035.5,0.00488187]
[1770639360018,0.58340305,2035.9,2035.1,0.28288023]
[1770639360019,0.58340305,2035.9,2035.2,0.52046993]
[1770639360914,0.58340305,2035.9,2035.2,0.52635947]
[1770639363321,40.8,2036.0,2035.2,0.52635947]
[1770639363622,41.38340305,2036.0,2035.2,0.52635947]
[1770639363822,0.58340305,2036.0,2035.2,0.52635947]
[1770639365115,0.58340305,2036.2,2035.2,0.52635947]
[1770639365718,41.38340305,2036.2,2035.2,0.52635947]
[1770639365920,0.58340305,2036.1,2035.2,0.52635947]
[1770639367124,0.58340305,2036.1,2035.3,0.52271038]
[1770639367424,40.8,2036.2,2035.3,0.52271038]
[1770639367624,41.38340305,2036.2,2035.3,0.52271038]
[1770639368026,0.58340305,2036.1,2035.3,0.52271038]
[1770639369631,0.58340305,2036.3,2035.5,0.52278281]
[1770639373528,3.52418569,2036.5,2035.7,0.50985054]
[1770639373726,0.58340305,2036.5,2035.7,0.50985054]
[1770639378038,0.58340305,2036.5,2035.6,0.76010994]
[1770639378238,0.59245733,2036.4,2035.7,0.51424994]
[1770639389950,0.59245733,2036.3,2035.6,0.24586]
[1770639390447,0.59245733,2036.3,2035.6,0.76897455]
[1770639390845,1.93203105,2036.2,2035.6,0.76897455]
[1770639391150,0.59245733,2035.9,2035.3,0.52505712]
[1770639392249,0.59245733,2036.0,2035.3,0.52505712]
[1770639392650,2.94078264,2036.3,2035.7,0.52505712]
[1770639392949,0.59245733,2036.3,2035.7,0.52505712]
[1770639402658,0.59245733,2036.3,2035.8,0.52089093]
[1770639407663,0.54132754,2036.1,2035.6,2.89569747]
[1770639407861,0.54132754,2036.1,2035.5,3.65920001]
[1770639408363,0.54132754,2036.1,2035.5,0.24587]
[1770639409167,0.54132754,2036.1,2035.5,0.76989017]
[1770639411567,0.54132754,2036.3,2035.7,0.52021596]
[1770639412669,3.48727375,2036.3,2035.7,0.52021596]
[1770639412965,0.54132754,2036.2,2035.7,0.52021596]
[1770639413870,0.54132754,2036.4,2035.7,0.52021596]
[1770639415663,0.54132754,2036.4,2035.6,1.93203105]
[1770639415664,0.54132754,2036.5,2036.1,0.52247019]
[1770639415871,0.54132754,2036.6,2036.2,2.45450124]
[1770639416071,0.54132754,2036.6,2036.3,0.54997454]
[1770639416272,0.54132754,2036.7,2036.3,0.54997454]
[1770639417274,0.54132754,2036.8,2036.3,0.54997454]
[1770639418373,0.54495153,2037.0,2036.5,0.54997454]
[1770639418967,0.54495153,2037.0,2036.4,0.54997454]
[1770639419175,0.54132754,2036.9,2036.4,0.54997454]
[1770639422381,0.54132754,2036.5,2035.9,0.79579454]
[1770639422680,0.54132754,2036.5,2036.0,0.54997454]
[1770639423676,0.54132754,2036.5,2035.9,0.24582]
[1770639423677,0.54132754,2036.5,2035.9,0.54997454]
[1770639425679,0.54132754,2036.5,2035.8,0.54997454]
[1770639433592,0.54132754,2036.1,2035.6,2.89569747]
[1770639433891,0.54132754,2036.1,2035.5,4.90248486]
[1770639433892,0.54132754,2036.1,2035.5,0.54997454]
[1770639435593,0.55110281,2035.9,2035.3,0.5929419]
[1770639436594,4.87797726,2036.2,2035.3,0.5929419]
[1770639436793,0.55110281,2036.1,2035.3,0.5929419]
[1770639437693,0.55110281,2035.9,2035.3,0.5929419]
[1770639442602,0.58049793,2036.4,2035.7,0.57905948]
[1770639444998,0.58049793,2036.1,2035.5,0.57905948]
[1770639447099,0.58049793,2036.1,2035.2,1.93792059]
[1770639447100,0.58049793,2035.5,2035.2,0.58494902]
[1770639447296,0.58049793,2035.2,2034.5,0.57905948]
[1770639447699,0.58049793,2035.3,2034.7,0.57905948]
[1770639448296,2.51630474,2035.3,2034.7,0.00622373]
[1770639448502,0.58049793,2035.2,2034.7,0.58528321]
[1770639450506,0.58049793,2035.2,2034.7,0.00622373]
[1770639451503,0.00377576,2035.3,2034.7,0.58528321]
[1770639451805,0.58427369,2035.3,2034.7,0.58528321]
[1770639455709,0.00377576,2035.3,2034.7,0.58528321]
[1770639456007,0.58049793,2035.9,2035.0,0.57905948]
[1770639457414,0.5846425,2035.9,2035.0,0.57905948]
[1770639462206,0.58049793,2035.7,2034.8,0.57905948]
[1770639467113,0.54593427,2035.6,2034.7,0.55739945]
[1770639467921,0.54593427,2035.5,2034.7,0.00622373]
[1770639468114,0.54593427,2035.4,2034.7,0.55739945]
[1770639469214,0.54593427,2035.2,2034.3,0.55117572]
[1770639469515,0.54593427,2035.1,2034.3,0.55117572]
[1770639469711,0.54593427,2035.1,2034.1,0.55117572]
[1770639469918,0.54593427,2034.9,2034.1,0.55117572]
[1770639470109,0.54593427,2034.9,2034.1,0.55486155]
[1770639470317,0.54593427,2034.8,2034.1,0.55486155]
[1770639472328,0.54593427,2034.8,2034.1,0.00368583]
[1770639472621,0.54593427,2034.8,2034.1,0.55486155]
[1770639473423,0.54593427,2034.8,2034.1,0.00368583]
[1770639473918,0.54593427,2034.8,2034.1,0.55486155]
[1770639474118,0.54593427,2034.8,2034.1,0.00368583]
[1770639475426,0.54593427,2034.8,2033.9,0.55117572]
[1770639475608,0.54593427,2034.7,2033.5,0.55117572]
[1770639476421,0.54593427,2034.7,2033.5,0.55738603]
[1770639477821,0.54593427,2034.7,2033.5,0.8327183]
[1770639478115,0.54593427,2034.7,2033.6,0.55117572]
[1770639478622,0.54593427,2034.6,2033.6,0.55117572]
[1770639481522,0.54593427,2035.0,2033.9,0.55117572]
[1770639486028,0.54593427,2034.9,2033.9,0.55117572]
[1770639487231,0.54593427,2034.8,2033.5,0.55738603]
[1770639487533,0.54593427,2034.1,2032.8,0.47690868]
[1770639487725,0.54593427,2033.9,2032.8,0.47690868]
[1770639488030,0.54593427,2033.9,2032.9,0.47690868]
[1770639488429,0.55054289,2033.9,2032.9,0.00566605]
[1770639488634,0.54593427,2033.7,2032.9,0.00566605]
[1770639490231,0.54593427,2033.7,2032.9,0.50578447]
[1770639490438,0.55054289,2033.9,2032.9,0.50578447]
[1770639492932,0.55054289,2033.9,2032.9,0.00566605]
[1770639493138,0.54593427,2033.7,2032.4,0.50193856]
[1770639493533,0.54593427,2033.5,2032.4,0.50193856]
[1770639494236,0.54593427,2033.7,2032.6,0.50193856]
[1770639494738,0.54593427,2033.6,2032.6,0.50193856]
[1770639498132,0.54593427,2033.6,2032.4,0.81677991]
[1770639498334,0.54593427,2033.6,2032.5,0.53100256]
[1770639500841,0.5352803,2033.8,2032.7,0.52984283]
[1770639501339,0.5352803,2033.8,2032.9,0.54393472]
[1770639502842,0.00460862,2033.9,2033.1,0.54393472]
[1770639503035,0.53988892,2033.9,2033.1,0.54393472]
[1770639503341,0.00460862,2033.9,2033.3,0.54337963]
[1770639504042,0.5352803,2034.4,2033.5,0.54337963]
[1770639504943,0.53973195,2034.4,2033.5,0.54337963]
[1770639507346,0.53973195,2034.4,2033.3,0.53094812]
[1770639509347,0.5352803,2033.9,2032.8,0.53112731]
[1770639509738,0.5352803,2033.9,2033.0,0.53112731]
[1770639515549,0.5352803,2033.9,2032.7,0.54383527]
[1770639515740,0.5352803,2033.8,2032.7,0.54383527]
[1770639515945,3.46591627,2033.8,2032.7,0.54383527]
[1770639516143,0.5352803,2033.7,2032.7,0.54383527]
[1770639516341,3.46591627,2033.6,2032.7,0.54383527]
[1770639516547,0.5352803,2033.5,2032.7,0.54383527]
[1770639516851,0.5352803,2033.5,2032.5,0.54383527]
[1770639517051,0.5352803,2033.4,2032.5,0.54383527]
[1770639517453,0.5352803,2033.3,2032.5,0.54383527]
[1770639520843,0.5352803,2033.5,2032.5,0.54383527]
[1770639521043,0.5352803,2033.5,2032.6,0.54174891]
[1770639522550,0.5352803,2033.5,2032.7,0.54174891]
[1770639525856,0.53637322,2033.7,2032.8,0.5456763]
[1770639526857,0.53637322,2033.7,2032.9,0.5456763]
[1770639527259,43.73063597,2034.1,2033.1,0.54556559]
[1770639527260,0.53637322,2034.0,2033.1,0.54556559]
[1770639529054,0.53637322,2034.1,2033.3,0.54504697]
[1770639530256,43.73508762,2034.4,2033.4,0.54504697]
[1770639530257,0.53637322,2034.3,2033.4,0.54504697]
[1770639530655,0.53637322,2034.3,2033.0,5.7772701]
[1770639530656,2.90414066,2033.9,2033.0,0.5943565]
[1770639530847,40.8,2033.8,2033.0,0.5943565]
[1770639531051,2.93063597,2034.1,2033.0,0.5943565]
[1770639531247,5.83477663,2034.2,2033.0,0.5943565]
[1770639532459,2.90414066,2033.9,2033.0,0.5943565]
[1770639533262,5.83477663,2033.9,2032.8,0.59593872]
[1770639534057,2.93063597,2033.8,2032.8,0.59593872]
[1770639535155,2.93063597,2033.7,2032.8,0.59593872]
[1770639535355,2.93063597,2033.8,2032.8,0.59593872]
[1770639536459,2.93063597,2033.9,2032.8,0.59593872]
[1770639540459,2.93063597,2034.0,2032.9,0.24619]
[1770639540656,2.93063597,2034.3,2033.0,0.5973664]
[1770639540862,2.93063597,2034.2,2033.1,0.59745426]
[1770639542066,31.81245165,2034.4,2033.3,0.59745426]
[1770639547663,2.90414066,2034.2,2033.3,0.59745426]
[1770639548368,34.74308762,2034.4,2033.3,0.59745426]
[1770639548569,31.81245165,2034.4,2033.3,0.59745426]
[1770639551166,8.76038407,2034.8,2033.3,0.59745426]
[1770639551167,2.93063597,2034.9,2033.5,0.62302535]
[1770639551672,40.8,2034.8,2033.5,0.62302535]
[1770639552268,40.80373715,2034.8,2033.5,0.62302535]
[1770639552573,40.80373715,2034.8,2033.4,10.69338914]
[1770639552574,40.80373715,2034.8,2033.7,0.62302535]
[1770639557285,0.00373715,2034.8,2033.7,0.62302535]
[1770639557485,0.00373715,2034.8,2033.6,0.24611]
[1770639557486,0.00373715,2034.8,2033.9,0.61992857]
[1770639557785,0.00373715,2034.8,2033.9,0.62385424]
[1770639562392,2.90787781,2034.8,2033.9,0.62385424]
[1770639564887,0.00373715,2034.8,2033.9,0.62385424]
[1770639567185,2.93437312,2034.8,2033.9,0.62385424]
[1770639568791,0.00373715,2034.8,2034.1,0.62311035]
[1770639575504,0.00373715,2034.8,2033.9,0.65532475]
[1770639575801,2.93437312,2034.8,2033.9,0.65532475]
[1770639576296,0.00373715,2034.8,2033.9,0.65532475]
[1770639576896,2.93437312,2034.8,2033.9,0.65532475]
[1770639579400,2.93063597,2034.6,2033.9,0.00392567]
[1770639579595,2.93063597,2034.5,2033.9,0.00392567]
[1770639581803,2.93063597,2034.6,2033.9,0.65345746]
[1770639582011,2.93063597,2034.7,2033.9,0.65345746]
[1770639582200,2.93437312,2034.8,2033.9,0.65345746]
[1770639582503,0.00373715,2034.8,2033.9,0.65345746]
[1770639586001,0.00373715,2034.8,2033.9,0.89951746]
[1770639586309,0.00373715,2034.8,2034.0,0.64219701]
[1770639587911,0.00373715,2034.8,2034.0,5.02463331]
[1770639588109,0.00373715,2034.8,2034.0,0.64219701]
[1770639588506,0.00373715,2034.8,2034.1,0.64268565]
[1770639590212,2.93063597,2034.9,2034.1,0.64268565]
[1770639590213,2.93063597,2035.3,2034.3,0.64343749]
[1770639590511,43.73063597,2035.3,2034.3,0.64343749]
[1770639591009,40.8,2035.3,2034.3,3.56088049]
[1770639591202,0.00482274,2035.3,2034.4,0.64367666]
[1770639594107,0.00482274,2035.3,2034.6,0.64477871]
[1770639597116,0.00482274,2035.3,2034.3,0.65432621]
[1770639598520,0.00482274,2035.3,2034.2,2.917443]
[1770639598521,0.00482274,2035.3,2034.5,0.65432621]
[1770639598722,0.00482274,2035.3,2034.7,0.65432621]
[1770639599419,40.8,2035.8,2034.7,0.65432621]
[1770639600311,43.78872402,2035.7,2034.7,0.65432621]
[1770639601215,84.59343643,2035.8,2034.7,0.65432621]
[1770639601519,43.78872402,2035.6,2034.7,0.65432621]
[1770639601719,43.78872402,2035.6,2034.6,0.89545411]
[1770639602618,43.78872402,2035.6,2034.5,0.64947411]
[1770639602923,43.78872402,2035.6,2034.1,6.0233101]
[1770639602924,43.78872402,2034.9,2034.0,0.64947411]
[1770639603220,75.57572402,2034.8,2033.7,0.65596843]
[1770639603411,43.78872402,2034.7,2033.7,0.65596843]
[1770639604213,43.78872402,2034.7,2033.7,0.66149324]
[1770639604520,43.78872402,2034.7,2033.5,0.65596843]
[1770639604722,43.78872402,2034.5,2033.5,0.65596843]
[1770639605524,43.78872402,2034.5,2033.5,0.65961419]
[1770639606322,84.58872402,2034.6,2033.5,0.65961419]
[1770639606922,31.79,2034.7,2033.5,0.65961419]
[1770639607224,43.78872402,2034.8,2033.5,0.65961419]
[1770639607425,72.59,2034.7,2033.6,0.65472826]
[1770639614833,43.78872402,2034.9,2033.8,0.65434392]
[1770639615124,31.794,2034.9,2034.0,0.65405456]
[1770639617131,40.8,2035.3,2034.0,0.65405456]
[1770639617132,31.794,2035.2,2034.0,0.65405456]
[1770639620437,34.69484044,2035.2,2033.9,0.89722449]
[1770639621533,34.69484044,2035.2,2034.0,0.65304166]
[1770639622034,31.794,2035.2,2034.0,0.65304166]
[1770639625039,75.58272402,2035.2,2034.0,0.65304166]
[1770639625733,43.78872402,2035.1,2033.9,0.8986412]
[1770639626538,43.78872402,2035.1,2034.0,0.6525712]
[1770639629138,43.78872402,2035.0,2034.0,0.6525712]
[1770639629541,43.78872402,2035.0,2033.6,0.65163137]
[1770639629542,43.78872402,2034.8,2033.6,0.65163137]
[1770639630641,43.78872402,2034.8,2033.7,0.65163137]
[1770639632337,43.78872402,2034.8,2033.7,3.56173659]
[1770639632542,43.78872402,2034.8,2033.8,0.65499087]
[1770639636649,43.78872402,2034.7,2033.8,0.65499087]
[1770639636949,43.78872402,2034.8,2033.9,0.65362393]
[1770639642147,43.78872402,2035.0,2034.0,0.65560953]
[1770639642352,40.8,2035.3,2034.2,0.65560953]
[1770639642752,40.8,2035.3,2034.3,0.65560953]
[1770639650959,31.795,2035.5,2034.5,0.64523089]
[1770639651257,31.795,2035.5,2034.4,3.80148971]
[1770639651258,34.69736696,2035.5,2034.4,3.80148971]
[1770639651460,75.49736696,2035.5,2034.4,3.80148971]
[1770639651759,75.49736696,2035.5,2034.5,0.64537449]
[1770639652059,75.49736696,2035.5,2034.4,0.89138449]
[1770639652259,119.62676163,2035.5,2034.5,0.64537449]
[1770639652460,75.49736696,2035.5,2034.5,0.64537449]
[1770639655260,75.49736696,2035.5,2034.4,0.24601]
[1770639655460,119.62676163,2035.5,2034.4,0.24601]
[1770639656363,119.62676163,2035.5,2034.0,3.55854489]
[1770639656364,2.90236696,2034.9,2034.0,3.55854489]
[1770639656658,2.90236696,2034.9,2034.0,0.64843967]
[1770639659056,44.12939467,2035.2,2034.0,0.64843967]
[1770639660060,44.12939467,2035.1,2034.0,0.64843967]
[1770639660763,2.90236696,2035.0,2034.0,0.64843967]
[1770639661555,2.90236696,2035.0,2033.9,3.7933821]
[1770639661955,2.90236696,2035.0,2033.9,0.88327688]
[1770639662359,2.90236696,2034.6,2033.7,3.5473221]
[1770639662961,31.79,2034.5,2033.5,3.53999503]
[1770639663261,31.79,2034.5,2033.5,0.00364576]
[1770639663462,2.90236696,2034.3,2033.5,0.00364576]
[1770639663662,2.90586123,2034.3,2033.2,0.62624405]
[1770639664062,40.8,2034.2,2033.2,0.62624405]
[1770639664764,40.8,2034.2,2033.2,0.62984546]
[1770639667860,31.79749427,2034.3,2033.2,0.62984546]
[1770639668362,40.80349427,2034.3,2033.2,0.62984546]
[1770639668558,0.00349427,2034.3,2033.4,0.60122661]
[1770639673054,0.00349427,2034.3,2033.4,2.91010522]
[1770639673263,0.00349427,2034.3,2033.5,0.60083555]
[1770639675269,0.00349427,2034.3,2033.5,3.51094077]
[1770639675473,0.00349427,2034.3,2033.6,0.60093236]
[1770639675671,76.17231467,2035.1,2033.7,0.60093236]
[1770639676164,40.8,2035.0,2033.7,0.60093236]
[1770639676668,40.80507512,2035.0,2033.7,0.60093236]
[1770639676869,0.00507512,2035.0,2033.7,0.60093236]
[1770639677760,0.00507512,2035.0,2033.7,0.84701236]
[1770639677967,0.00507512,2035.0,2033.8,0.6020734]
[1770639678167,0.00507512,2035.0,2034.0,0.6020734]
[1770639678367,0.00507512,2035.0,2034.2,0.6020734]
[1770639681169,2.93214846,2035.5,2034.2,0.6020734]
[1770639681371,40.8,2035.5,2034.2,0.6020734]
[1770639682072,40.80597313,2035.5,2034.2,0.6020734]
[1770639682771,43.70834009,2035.5,2034.2,0.6020734]
[1770639682969,2.90236696,2035.2,2034.2,0.6020734]
[1770639686372,2.90236696,2035.2,2034.0,0.60370157]
[1770639686373,2.90236696,2034.9,2034.0,0.60370157]
[1770639688882,2.90236696,2034.6,2033.8,0.59899816]
[1770639689177,2.90236696,2034.6,2033.7,0.5967762]
[1770639690866,2.93214846,2034.8,2033.7,0.5967762]
[1770639692875,0.00548575,2034.7,2033.7,0.5967762]
[1770639695077,0.00548575,2034.7,2033.9,0.59872719]
[1770639698182,2.93214846,2034.9,2033.9,0.59872719]
[1770639698381,2.93214846,2035.0,2034.0,0.60490076]
[1770639698583,34.72614846,2035.2,2034.0,0.60490076]
[1770639699085,31.794,2035.2,2034.0,0.60490076]
[1770639699281,31.794,2035.2,2034.1,0.60451785]
[1770639705385,31.794,2035.2,2034.3,0.60397899]
[1770639710387,31.794,2035.2,2034.2,0.24603]
[1770639710585,44.12939467,2035.1,2033.9,3.51159152]
[1770639710885,37.65024341,2035.2,2034.1,0.6014863]
[1770639710886,75.92339467,2035.2,2034.1,0.6014863]
[1770639711086,75.92339467,2035.2,2034.2,0.60259919]
[1770639711287,75.92339467,2035.2,2034.1,3.15614522]
[1770639711288,31.794,2035.2,2034.4,0.60259919]
[1770639716903,31.794,2035.2,2034.3,0.84815133]
[1770639717301,31.794,2035.2,2034.4,0.60213133]
[1770639717898,31.794,2035.2,2034.1,3.51223655]
[1770639718098,31.794,2035.2,2034.2,0.60213133]
[1770639720206,2.94268351,2035.1,2034.2,0.60213133]